Cogmind - Beta 16.1 @@@ ROGUE MODE // 2026.05.02 @ 02:18:53 Player: McSaucyNugget Result: Self-destructed Performance ------------- Evolutions (5) 2500 Regions Visited (13) 2600 Robots Destroyed (346) 1730 Value Destroyed (9343) 9343 Prototype IDs (21) 420 Alien Tech Used (0) 0 Bonus (3855) 3855 TOTAL SCORE: 20448 Bonus ------- Triggered High Security 500 High Alert Combat Kills 2634 Follower Combat Kills 1422 Network Hubs Disabled 400 Registered with UFD 300 Met Optimus in HQ 500 Met Zhirov 300 Built Enhanced Grunts 300 Met R17 at Cetus 500 Friendly Fire -3001 Cogmind --------- Core Integrity 668/1000 Matter 266/300 Energy 19/100 System Corruption 6% Temperature Cool (0) Movement Treading (160) Location -5/Waste Parts ------- > --- POWER (2) -------- (None) > --- PROPULSION (5) --- Centrium Heavy Treads Centrium Heavy Treads > --- UTILITY (4) ------ Advanced Cooling System Huge Storage Unit Advanced Hacking Suite > --- WEAPON (6) ------- Improved Heavy Machine Gun > --- INVENTORY (25) --- Centrium Heavy Treads Advanced Cooling System Energy Well (350) Energy Well (350) Improved Matter Compressor (173) Advanced Sensor Array Improved Weapon Cycler Transmission Jammer Medium Regenerative Plating Force Field A0-MCA's Component Scanner High-powered Tractor Beam Gatling Laser Cooled Particle Cannon Gauss Rifle Advanced KE Penetrator Advanced KE Penetrator Helical Railgun CPS Tube (2) Peak State ------------ > --- POWER ------------ Quantum Reactor Quantum Reactor > --- PROPULSION ------- Medium Treads Centrium Heavy Treads Centrium Heavy Treads > --- UTILITY ---------- Advanced Cooling System Huge Storage Unit Core Analyzer Advanced Hacking Suite > --- WEAPON ----------- Hypervelocity Gauss Rifle Advanced KE Penetrator Advanced KE Penetrator Advanced KE Penetrator Advanced KE Penetrator Advanced KE Penetrator > --- INVENTORY -------- Centrium Heavy Treads Advanced Cooling System Energy Well Energy Well Improved Matter Compressor Improved Matter Compressor Advanced Sensor Array Improved Weapon Cycler Transmission Jammer Medium Regenerative Plating Force Field A0-MCA's Component Scanner High-powered Tractor Beam Gatling Laser Cooled Particle Cannon Gauss Rifle Improved Heavy Machine Gun KE Penetrator KE Penetrator Advanced KE Penetrator Advanced KE Penetrator Helical Railgun Long-range Missile Launcher CPS Tube [Rating: 135] Favorites ----------- Power Cooled Ion Engine Engine Cooled Ion Engine Power Core Light Nuclear Core Reactor Quantum Reactor Propulsion Light Treads Treads Light Treads Wheel Wheel Utility High-capacity Storage Unit Device Weapon Cycler Storage High-capacity Storage Unit Processor Core Analyzer Hackware Advanced Hacking Suite Protection Hardened Light Armor Plating Weapon Improved Assault Rifle Energy Gun Plasma Rifle Energy Cannon Advanced Beam Cannon Ballistic Gun Improved Assault Rifle Ballistic Cannon Assault Cannon Launcher Mini Grenade Launcher Special Weapon Remote Datajack Impact Weapon Great Maul Build | -11 -10 -10 -9 -9 -9 -9 -6 -6 -6 -6 -6 -5 -5 ------- Run | Yrd Mat Min Mat Sto Rec Scr Fac Ext Cet Arc Hub Fac Was Slots Evolved 10 | . . . 2 . . . 6 . . . . 2 . Power 1 | . . . . . . . . . . . . 1 . Propulsion 3 | . . . . . . . 3 . . . . . . Utility 2 | . . . 1 . . . 1 . . . . . . Weapon 4 | . . . 1 . . . 2 . . . . 1 . Parts Attached 135 | 6 7 3 15 20 2 9 19 24 16 . 4 8 2 Power 12 | 1 . 2 1 2 . 1 . 2 2 . . 1 . Engine 7 | 1 . 1 1 2 . . . 2 . . . . . Core 2 | . . 1 . . . 1 . . . . . . . Reactor 3 | . . . . . . . . . 2 . . 1 . Propulsion 36 | 2 . . 4 7 1 . 6 11 2 . 1 2 . Treads 31 | 2 . . 4 7 1 . 2 10 2 . 1 2 . Leg . | . . . . . . . . . . . . . . Wheel 5 | . . . . . . . 4 1 . . . . . Hover . | . . . . . . . . . . . . . . Flight . | . . . . . . . . . . . . . . Utility 39 | 1 3 . 4 3 1 7 5 5 5 . 1 4 . Device 16 | . . . 2 1 . 3 3 1 3 . . 3 . Storage 9 | 1 2 . . . . 2 1 2 . . 1 . . Processor 2 | . . . . . . 1 . 1 . . . . . Hackware 2 | . . . . . . . . 1 . . . 1 . Protection 10 | . 1 . 2 2 1 1 1 . 2 . . . . Artifact . | . . . . . . . . . . . . . . Weapon 48 | 2 4 1 6 8 . 1 8 6 7 . 2 1 2 Energy Gun 7 | 2 . . 1 . . . 3 . 1 . . . . Energy Cannon 7 | . . . 3 1 . . . 1 1 . 1 . . Ballistic Gun 21 | . 1 1 . 3 . . 4 4 4 . 1 1 2 Ballistic Cannon 5 | . 1 . 2 1 . . . 1 . . . . . Launcher 5 | . 2 . . 2 . 1 . . . . . . . Special Weapon 2 | . . . . . . . 1 . 1 . . . . Impact Weapon 1 | . . . . 1 . . . . . . . . . Slashing Weapon . | . . . . . . . . . . . . . . Piercing Weapon . | . . . . . . . . . . . . . . Special Melee Weapon . | . . . . . . . . . . . . . . Unidentified Prototypes 17 | . . . 3 1 . 1 2 2 6 . 1 1 . Corrupted Parts 2 | . . . . . . . . . 2 . . . . System Corruption 9 | . . . . . . . . . 9 . . . . Parts Lost 21 | . . . 2 3 . . 6 2 . . . 1 7 Power 2 | . . . 1 . . . . . . . . . 1 Propulsion 6 | . . . 1 . . . 3 . . . . 1 1 Utility 3 | . . . . 1 . . 2 . . . . . . Weapon 10 | . . . . 2 . . 1 2 . . . . 5 Highest Loss Streak 7 | . . . 1 1 . . 2 1 . . . 1 7 To Critical Strikes 1 | . . . . . . . . . . . . . 1 Average Backups 17 | 2 10 18 18 17 18 16 18 18 18 19 20 21 22 Power 1 | . 1 2 1 1 2 1 1 1 1 1 1 . . Propulsion 3 | . 3 6 6 4 4 3 . . 1 1 1 1 1 Utility 7 | . 1 4 5 6 6 7 8 8 8 10 10 11 11 Weapon 5 | . 3 6 5 5 5 5 5 6 6 6 6 7 8 Tool/Special . | . . . . . . . . . . . . . . Unused Backups 50 | . 3 1 12 2 2 3 6 4 2 . 1 1 13 Power 6 | . . . 1 1 . . 2 . 1 . 1 . . Propulsion 12 | . 3 . 7 . . . . . 1 . . . 1 Utility 20 | . . . 3 . 2 3 2 3 . . . 1 6 Weapon 11 | . . 1 1 1 . . 2 1 . . . . 5 Tool/Special 1 | . . . . . . . . . . . . . 1 Average Slot Usage (%) 97 | . 94 100 99 99 100 99 92 99 91 86 85 87 73 Engine 8 | . 14 6 7 11 11 11 6 5 1 . . . . Treads 24 | . 27 28 21 22 22 22 26 30 25 20 20 16 15 Device 9 | . . . 9 10 11 10 12 11 12 6 12 5 5 Storage 9 | . 14 14 11 11 11 11 6 6 6 6 6 5 5 Processor 1 | . . . . . . . . 5 6 6 6 5 2 Protection 7 | . 8 14 12 11 11 10 5 1 . 6 . . . Energy Gun 1 | . 19 . . . . . 5 . 4 . . . . Energy Cannon 3 | . . . 11 2 10 6 2 . . . 1 . . Ballistic Gun 20 | . 7 13 1 16 22 22 17 29 27 33 31 34 29 Ballistic Cannon 3 | . 1 14 20 3 . . . 1 . . . . . Launcher 2 | . . . . 9 . 3 . . . . . . . Peak Build Rating 135 | 6 10 15 23 23 23 32 50 60 116 116 116 134 135 Average Rating 39 | 5 7 14 21 21 22 27 44 54 98 116 113 130 116 On Entrance 51 | . 6 9 15 22 21 23 31 48 58 116 116 115 134 Avg Prop Armor Cover (%) 4 | . . . . . . . 5 4 . . . . . Naked Turns . | . . . . . . . . . . . . . . Heaviest Build 159 | 13 53 58 69 69 65 70 84 91 100 100 134 159 158 Greatest Support 188 | 40 40 40 40 40 40 40 100 126 188 188 188 188 188 Greatest Overweight (x) 9 | 1 9 1 1 1 1 1 7 8 . . . . . Average Overweight (x) . | . . 1 1 1 1 . . . . . . . . Largest Inventory Capacity 25 | 8 20 20 20 20 20 20 20 25 20 20 25 25 25 Average Capacity 19 | 7 15 20 20 20 20 18 20 20 20 20 23 25 25 Most Carried 25 | 4 16 20 20 20 20 20 20 20 20 20 24 25 25 Average Carried 18 | 2 10 19 19 18 19 17 19 19 19 20 22 23 23 Final Capacity 25 | 8 20 20 20 20 20 20 20 20 20 20 25 25 25 Final Carried 24 | 4 15 20 20 18 20 20 20 20 20 20 24 24 20 Class Distribution -------------------- 43% | Tank 17% | Scavenger-Gunner 17% | Scavenger-Tank 14% | Mutant 3% | Commander-Tank 3% | Scavenger-Executioner Dominant Class ---------------- Mutant | -10/Materials Mutant | -10/Mines Tank | -9/Materials Tank | -9/Storage Tank | -9/Recycling Tank | -9/Scraptown Scavenger-Tank | -6/Factory Scavenger-Gunner | -6/Extension Scavenger-Gunner | -6/Cetus Scavenger-Tank | -6/Archives Scavenger-Tank | -6/Hub_04(d) Scavenger-Executioner | -5/Factory Scavenger-Executioner | -5/Waste Resources | -11 -10 -10 -9 -9 -9 -9 -6 -6 -6 -6 -6 -5 -5 ----------- Run | Yrd Mat Min Mat Sto Rec Scr Fac Ext Cet Arc Hub Fac Was Matter Collected 11087 | 225 175 354 548 2166 279 243 910 2889 556 . 963 1479 300 Remotely 220 | . . . . 220 . . . . . . . . . Salvage Created 14330 | 72 607 220 1009 3843 543 . 1644 3060 497 . 1091 1413 331 Parts 749 | 2 35 26 71 215 20 . 75 136 40 . 61 61 7 Haulers Intercepted 16 | . 1 . 5 6 . . . 1 . . 2 1 . Recyclers Shooed 20 | . 2 1 1 7 2 . 4 2 . . . 1 . Parts Field Recycled . | . . . . . . . . . . . . . . Retrieved Matter . | . . . . . . . . . . . . . . Parts Self-Destructed . | . . . . . . . . . . . . . . Prevented . | . . . . . . . . . . . . . . Parts Restored . | . . . . . . . . . . . . . . Kills | -11 -10 -10 -9 -9 -9 -9 -6 -6 -6 -6 -6 -5 -5 ------- Run | Yrd Mat Min Mat Sto Rec Scr Fac Ext Cet Arc Hub Fac Was Combat Hostiles Destroyed 194 | . 18 8 14 80 4 . 12 24 5 . 11 17 1 Melee 2 | . . . . . . . 2 . . . . . . Guns 91 | . 7 1 . 17 2 . 9 21 5 . 11 17 1 Cannons 25 | . . 2 11 9 2 . . 1 . . . . . AOE 75 | . 11 5 3 54 . . . 2 . . . . . Classes Destroyed 18 | 1 4 3 3 3 . . 2 . . . . 1 1 Worker 29 | . . 1 2 11 . . 4 8 . . 3 . . Builder 36 | . . 2 . 15 1 . 4 9 . . 4 1 . Tunneler 8 | . . 1 2 . . . 1 2 . . 2 . . Hauler 16 | . 1 . 5 6 . . . 1 . . 2 1 . Recycler 39 | 1 1 2 3 11 4 . 6 10 . . . 1 . Mechanic 7 | . . . . 6 . . 1 . . . . . . Operator 7 | . . . 2 2 . . 2 . . . 1 . . Watcher 8 | . 1 . 2 . . . 1 2 1 . . 1 . Swarmer 40 | . 9 6 1 9 . . 4 10 . . 1 . . Saboteur 1 | . . . . . . . . . . . . 1 . Grunt 83 | . 9 2 7 50 . . . 7 . . 4 4 . Brawler 10 | . . . 1 4 . . . 1 . . 1 3 . Duelist 3 | . . . . 2 . . . . . . . 1 . Protector 6 | . . . . 6 . . . . . . . . . Sentry 31 | . . . 5 9 4 . . 5 . . 4 4 . Hunter 8 | . . . . . . . 4 . . . . 4 . Programmer 6 | . . . . . . . 4 1 . . 1 . . Compactor 1 | . . . . . . . . . . . . . 1 Cetus Guard 5 | . . . . . . . . . 5 . . . . Butcher 1 | . . . . . . . . 1 . . . . . Best Kill Streak 13 | 1 4 5 6 10 2 . 5 13 5 . 5 6 1 Combat Bots Only 9 | . 3 3 4 9 1 . 4 4 4 . 3 5 1 Max Kills in Single Turn 5 | 1 2 2 4 5 2 . 2 2 1 . 2 2 1 Gunslinging 1 | . . . . . . . 1 . . . . 1 . Exploded 4 | . 2 2 2 4 . . . 2 . . . . . Melee 1 | . . . . . . . 1 . . . . . . Uniques/NPCs Destroyed 1 | . . . . . . . . . 1 . . . . A7 (-6/Cetus) Combat | -11 -10 -10 -9 -9 -9 -9 -6 -6 -6 -6 -6 -5 -5 -------- Run | Yrd Mat Min Mat Sto Rec Scr Fac Ext Cet Arc Hub Fac Was Hostile Shots Fired 719 | . 46 17 40 148 8 . 112 189 18 . 46 83 12 Missed 218 | . 9 3 16 41 2 . 24 79 5 . 17 22 . Hits 501 | . 37 14 24 107 6 . 88 110 13 . 29 61 12 Melee 14 | . . . . . . . . . . . . 2 12 Projectile 487 | . 37 14 24 107 6 . 88 110 13 . 29 59 . Critical Strikes 15 | . . . 1 1 1 . 1 . 1 . 1 4 5 Damage Taken 6532 | . 373 155 258 1059 61 . 1263 709 286 . 565 883 920 Core 871 | . 78 25 24 102 . . 105 89 27 . 89 99 233 Absorbed by Shields 1088 | . . . 8 349 24 . 65 500 142 . . . . Regen/Repaired (Parts) 275 | . . . . 41 . 157 . . 8 32 37 . . Core Remaining (%) 72 | 100 . 58 . . . 68 . . . . 63 . . Volleys Fired 596 | 7 44 23 40 159 13 . 52 146 24 . 44 31 13 Largest 6 | 2 2 2 3 3 3 . 5 5 5 . 5 6 6 Hottest 218 | 90 90 55 176 176 114 . 182 197 218 . 173 208 208 Shots Fired 1801 | 14 71 42 110 320 40 . 183 526 111 . 146 179 59 Gun 1383 | 14 54 19 1 158 27 . 182 454 109 . 130 178 57 Cannon 283 | . . 19 107 81 13 . . 49 . . 14 . . Launcher 133 | . 17 4 2 81 . . 1 23 . . 2 1 2 Special 2 | . . . . . . . . . 2 . . . . Kinetic 1411 | . 7 38 67 198 27 . 131 475 103 . 130 178 57 Thermal 244 | 14 47 . 41 41 13 . 40 28 6 . 14 . . Explosive 109 | . 5 4 2 69 . . 1 23 . . 2 1 2 Electromagnetic 35 | . 12 . . 12 . . 11 . . . . . . Robot Hit Streak 26 | 6 13 8 9 21 12 . 26 22 14 . 10 11 11 Robot Miss Streak 8 | 1 6 5 3 5 1 . 6 8 4 . 4 5 1 Penetration Max 3 | . . . . . . . 1 2 1 . 3 1 1 Secondary Targets 11 | . . . . . . . 1 3 1 . 2 3 1 Max Gunslinging Chain 1 | . . . . . . . 1 1 1 . 1 1 1 Shots Hit Robots 991 | 10 39 20 49 164 27 . 114 292 73 . 61 92 50 Core Hits 613 | 2 32 16 30 215 12 . 43 143 26 . 40 45 9 Critical Kills 34 | . . . . 3 2 . 2 2 3 . 10 11 1 Critical Parts Destroyed 32 | . . . . 1 . . 1 3 3 . 10 13 1 Critical Strikes 90 | 1 1 . 2 5 2 . 4 6 11 . 23 26 9 Burn 3 | 1 1 . . . . . 1 . . . . . . Meltdown 1 | . . . . . 1 . . . . . . . . Destroy 81 | . . . . 3 1 . 2 6 11 . 23 26 9 Blast 3 | . . . 2 1 . . . . . . . . . Smash 2 | . . . . 1 . . 1 . . . . . . Melee Attacks 24 | . . . . 7 . . 17 . . . . . . Impact 24 | . . . . 7 . . 17 . . . . . . Slashing . | . . . . . . . . . . . . . . Piercing . | . . . . . . . . . . . . . . Sneak Attacks 7 | . . . . 3 . . 4 . . . . . . Combat Hostiles . | . . . . . . . . . . . . . . Follow-up Attacks . | . . . . . . . . . . . . . . Damage Inflicted 29286 | 116 1045 845 1602 8922 515 . 3008 6204 1528 . 2008 1766 1727 Guns 16760 | 116 413 150 15 1573 332 . 2361 5499 1528 . 1730 1766 1277 Cannons 2807 | . . 172 1064 950 165 . . 430 . . 26 . . Explosions 8787 | . 627 510 523 6090 . . 70 275 . . 242 . 450 Melee 881 | . . . . 304 . . 577 . . . . . . Ramming 51 | . 5 13 . 5 18 . . . . . 10 . . Kinetic 17010 | . 80 322 593 2056 332 . 1748 5715 1391 . 1730 1766 1277 Thermal 2613 | 116 333 178 486 531 165 . 427 214 137 . 26 . . Explosive 7231 | . 338 332 523 5243 . . 70 275 . . . . 450 Electromagnetic 1500 | . 289 . . 783 . . 186 . . . 242 . . Impact 881 | . . . . 304 . . 577 . . . . . . Slashing . | . . . . . . . . . . . . . . Piercing . | . . . . . . . . . . . . . . Highest Corruption 13 | . . . . 2 2 2 4 4 13 13 13 . 6 Average Corruption 4 | . . . . 1 2 2 3 4 11 13 13 . 6 Corruption Purged . | . . . . . . . . . . . . . . Corruption Blocked . | . . . . . . . . . . . . . . Effects 230 | . . . . 52 18 . 6 82 25 3 41 . 3 Message Errors 48 | . . . . 12 3 . 1 12 9 2 8 . 1 Matter Fused 57 | . . . . 13 5 . 3 18 7 1 8 . 2 Heat Flow Errors 32 | . . . . 6 1 . 1 19 2 . 3 . . Energy Discharges 34 | . . . . 8 3 . 1 7 5 . 10 . . Parts Fused 2 | . . . . . . . . 1 . . 1 . . Data Loss (minor) 25 | . . . . 4 4 . . 12 1 . 4 . . Data Loss (major) 12 | . . . . 3 1 . . 6 . . 2 . . Misfires 5 | . . . . 1 1 . . 2 . . 1 . . Alerts 4 | . . . . 2 . . . 1 . . 1 . . Weapon Failures 11 | . . . . 3 . . . 4 1 . 3 . . Overload Shots 9 | . . . . . . . . . . . 9 . . Overflow Damage 510 | . 20 43 42 199 . . 144 31 . . 31 . . Projectiles 40 | . . . 2 7 . . . 31 . . . . . Explosions 184 | . 20 43 40 50 . . . . . . 31 . . Melee 286 | . . . . 142 . . 144 . . . . . . Knockbacks 15 | . . 3 3 2 . . 3 4 . . . . . Impact 3 | . . . . . . . 3 . . . . . . Kinetic 12 | . . 3 3 2 . . . 4 . . . . . Secondary . | . . . . . . . . . . . . . . Self-Inflicted Damage 443 | . 12 8 . 145 . . . . . . 164 . 114 Shots 12 | . 1 1 . 6 . . . . . . 2 . 2 Rammed 7 | . 1 2 . 2 1 . . . . . 1 . . Targets Rammed 7 | . 1 2 . 2 1 . . . . . 1 . . Kicked . | . . . . . . . . . . . . . . Crushed . | . . . . . . . . . . . . . . Highest Temperature 476 | 150 138 69 114 440 268 . 382 476 216 . 184 424 9 Average Temperature 84 | 67 45 15 27 74 78 . 110 119 101 . 32 61 5 Received Heat Transfer 1050 | . 123 39 93 415 31 . . 149 35 . 138 27 . Effects 25 | . . . . 7 . . 4 13 . . . 1 . Shutdowns 8 | . . . . 2 . . 1 4 . . . 1 . Energy Bleed 4 | . . . . 1 . . . 3 . . . . . Interference 9 | . . . . 3 . . 3 3 . . . . . Matter Decay 3 | . . . . 1 . . . 2 . . . . . Short Circuit 1 | . . . . . . . . 1 . . . . . Siege Activations 2 | . . . . . . . . . . . . 2 . Total Turns 29 | . . . . . . . . . . . . 29 . Longest Duration 23 | . . . . . . . . . . . . 23 . Martial Activations . | . . . . . . . . . . . . . . Shielding Activations . | . . . . . . . . . . . . . . Robots Disrupted 1 | . . . . 1 . . . . . . . . . Combat Hostiles 1 | . . . . 1 . . . . . . . . . Robots Corrupted 5 | . . . . 1 . . 4 . . . . . . Combat Hostiles 1 | . . . . . . . 1 . . . . . . Parts Fried 11 | . . . . 4 . . 7 . . . . . . Impact Corruptions 13 | . . . . 6 . . 7 . . . . . . Robots Melted 1 | . . . . . 1 . . . . . . . . Combat Hostiles . | . . . . . . . . . . . . . . Parts Melted 10 | . 2 . . 2 1 . 5 . . . . . . Heat Transferred 5124 | 372 931 200 851 958 296 . 1000 350 129 . 37 . . Parts Sabotaged . | . . . . . . . . . . . . . . Parts Stolen . | . . . . . . . . . . . . . . Parts Stripped . | . . . . . . . . . . . . . . Power Chain Reactions 6 | . 3 . . 3 . . . . . . . . . Alert | -11 -10 -10 -9 -9 -9 -9 -6 -6 -6 -6 -6 -5 -5 ------- Run | Yrd Mat Min Mat Sto Rec Scr Fac Ext Cet Arc Hub Fac Was Maximum Alert Level 5 | . 1 . 1 5 4 . . 4 3 1 3 3 1 Low Security (%) 38 | 100 87 100 83 5 . . 100 33 . . 6 . 45 Level 1 5 | . 12 . 16 1 . . . 8 . 100 5 . 54 Level 2 18 | . . . . 36 . . . 11 8 . 55 84 . Level 3 18 | . . . . 17 92 . . 4 91 . 32 15 . Level 4 15 | . . . . 22 7 . . 41 . . . . . Level 5 3 | . . . . 12 . . . . . . . . . High Security . | . . . . 3 . . . . . . . . . Max Security . | . . . . . . . . . . . . . . Sterilizations 1 | . . . . 1 . . . . . . . . . Peak Influence 2180 | 5 222 139 297 2180 1130 . 147 1417 844 292 983 747 253 Initial 1100 | . . 76 . 120 1100 . . 67 790 292 84 461 253 Average 585 | . 102 37 106 975 1004 . 25 689 767 278 612 576 209 Influence Increases 9704 | 5 567 280 730 3040 285 . 456 2110 295 . 1334 566 36 Destroy 0b10 Robot/C 4580 | . 360 160 360 1620 80 . 240 840 160 . 420 340 . Destroy 0b10 Robot/NC 860 | 5 15 30 85 295 25 . 95 190 10 . 90 20 . Destroy Leader 966 | . 74 30 126 326 . . 72 126 . . 128 84 . Allied During Kill 1034 | . . . 12 103 . . . 480 112 . 327 . . Successful Hack 144 | . 27 . 14 55 . . 15 33 . . . . . Select Force Hacks 210 | . 30 . . . 180 . . . . . . . . Disable Machine 630 | . 30 30 45 165 . . 15 210 . . 105 30 . Anti-Garrison Action 150 | . . . . 150 . . . . . . . . . Destroy Structure 980 | . 31 30 28 281 . . 19 201 13 . 249 92 36 Partial Spotted 15 | . . . . . . . . . . . 15 . . Lose Combat Pursuer 135 | . . . 60 45 . . . 30 . . . . . Influence Decreases 9805 | 5 369 478 445 1145 1836 879 318 836 976 489 634 785 610 Entered New Map 4737 | . . 122 . 165 1330 879 . 71 622 439 158 481 470 Time Decay 4309 | 5 369 356 385 770 506 . 278 556 294 30 416 294 50 Lost Part 190 | . . . 20 30 . . 40 20 . . . 10 70 Lost Ally 569 | . . . 40 180 . . . 189 60 20 60 . 20 Squads Dispatched 45 | . 3 . 5 16 . . 6 3 . . 8 4 . Investigation 9 | . 2 . 1 2 . . 1 1 . . . 2 . Extermination 5 | . . . . . . . 3 . . . 2 . . Reinforcement 18 | . 1 . 4 3 . . 2 1 . . 6 1 . Assault 13 | . . . . 11 . . . 1 . . . 1 . Garrison . | . . . . . . . . . . . . . . Intercept . | . . . . . . . . . . . . . . Searches Triggered . | . . . . . . . . . . . . . . Construction Impeded 3 | . . . . 1 . . . 1 . . 1 . . Haulers Reinforced . | . . . . . . . . . . . . . . Active Scanning Responses . | . . . . . . . . . . . . . . Cargo Convoy Interrupts . | . . . . . . . . . . . . . . Stealth | -11 -10 -10 -9 -9 -9 -9 -6 -6 -6 -6 -6 -5 -5 --------- Run | Yrd Mat Min Mat Sto Rec Scr Fac Ext Cet Arc Hub Fac Was Distress Signals 13 | . 2 . 2 3 . . . 2 2 . 1 1 . Communications Jammed 14 | . . . . . . . 3 . . . 11 . . Distress Signals 11 | . . . . . . . . . . . 11 . . Times Spotted 303 | . 29 7 31 119 3 . 16 44 9 . 25 16 4 Peak Tracking Total 10 | . 5 3 4 10 1 . 2 6 5 . 4 5 4 Tactical Retreats 6 | . . . 2 2 . . . 2 . . . . . Traps | -11 -10 -10 -9 -9 -9 -9 -6 -6 -6 -6 -6 -5 -5 ------- Run | Yrd Mat Min Mat Sto Rec Scr Fac Ext Cet Arc Hub Fac Was Traps Triggered 12 | . 4 . . 2 . . 1 3 . . . 2 . Indirectly . | . . . . . . . . . . . . . . Trap Hack Attempts . | . . . . . . . . . . . . . . Triggered . | . . . . . . . . . . . . . . Disarmed 6 | . 6 . . . . . . . . . . . . Reprogrammed . | . . . . . . . . . . . . . . Reused . | . . . . . . . . . . . . . . Traps Extracted . | . . . . . . . . . . . . . . Installed . | . . . . . . . . . . . . . . Triggered . | . . . . . . . . . . . . . . Machines | -11 -10 -10 -9 -9 -9 -9 -6 -6 -6 -6 -6 -5 -5 ---------- Run | Yrd Mat Min Mat Sto Rec Scr Fac Ext Cet Arc Hub Fac Was Machines Disabled 49 | . 3 3 3 12 . . 1 18 . . 7 2 . Max in Single Turn 3 | . 2 2 1 1 . . 1 2 . . 3 1 . Garrison Access 2 | . . . . 1 . . . . . . 1 . . Network Hub 2 | . . . . . . . . . . . 2 . . Energy Cycler 3 | . . . . . . . . 3 . . . . . Machines Repaired . | . . . . . . . . . . . . . . Machines Dismantled . | . . . . . . . . . . . . . . Machines Sabotaged . | . . . . . . . . . . . . . . Overloaded Fab Kills . | . . . . . . . . . . . . . . Hacking | -11 -10 -10 -9 -9 -9 -9 -6 -6 -6 -6 -6 -5 -5 --------- Run | Yrd Mat Min Mat Sto Rec Scr Fac Ext Cet Arc Hub Fac Was Machines Accessed 63 | . 8 2 3 11 10 2 6 11 . . 6 4 . Terminals 43 | . 7 . 3 8 4 . 3 11 . . 5 2 . Fabricators 1 | . . . . . . . 1 . . . . . . Repair Stations 2 | . . . . 2 . . . . . . . . . Recycling Units 8 | . 1 . . . 6 . . . . . . 1 . Scanalyzers 2 | . . . . . . . 1 . . . . 1 . Garrison Access 3 | . . . . 1 . . 1 . . . 1 . . Total Hacks 130 | . 17 2 7 32 15 10 16 16 . . 9 6 . Successful 71 | . 13 2 2 15 10 10 6 9 . . 1 3 . Failed 59 | . 4 . 5 17 5 . 10 7 . . 8 3 . Catastrophic 12 | . 1 . 2 1 . . 1 3 . . 3 1 . Database Lockouts . | . . . . . . . . . . . . . . Manual 61 | . 13 . 5 22 11 . 1 4 1 . 2 2 . Terminals 87 | . 16 . 7 25 9 . 6 16 . . 6 2 . Fabricators 3 | . . . . . . . 3 . . . . . . Repair Stations 5 | . . . . 5 . . . . . . . . . Recycling Units 8 | . 1 . . . 6 . . . . . . 1 . Scanalyzers 8 | . . . . . . . 5 . . . . 3 . Garrison Access 7 | . . . . 2 . . 2 . . . 3 . . Terminal Hacks 33 | . 4 2 2 5 1 10 1 8 . . . . . Record 10 | . . . . . . 10 . . . . . . . Robot Analysis 1 | . . . 1 . . . . . . . . . . Prototype ID Bank 2 | . 1 . . . 1 . . . . . . . . Open Door 11 | . . 2 . 2 . . . 7 . . . . . Branch Access Points 1 | . . . . . . . 1 . . . . . . Terminal Index 1 | . 1 . . . . . . . . . . . . Locate Traps 4 | . . . 1 2 . . . 1 . . . . . Disarm Traps 1 | . 1 . . . . . . . . . . . . Hauler Manifests 1 | . . . . 1 . . . . . . . . . Zone Layout 1 | . 1 . . . . . . . . . . . . Fabricator Hacks . | . . . . . . . . . . . . . . Repair Station Hacks 4 | . . . . 4 . . . . . . . . . Scan Component 2 | . . . . 2 . . . . . . . . . Repair 2 | . . . . 2 . . . . . . . . . Recycling Unit Hacks . | . . . . . . . . . . . . . . Scanalyzer 6 | . . . . . . . 4 . . . . 2 . Retrieve Study 6 | . . . . . . . 4 . . . . 2 . Garrison Access Hacks 1 | . . . . . . . . . . . 1 . . Seal Access 1 | . . . . . . . . . . . 1 . . Unauthorized Hacks 26 | . 9 . . 5 9 . 1 1 . . . 1 . Terminals 18 | . 8 . . 5 3 . 1 1 . . . . . Botnet 4 | . 2 . . . . . 1 1 . . . . . Skim 14 | . 6 . . 5 3 . . . . . . . . Fabricators . | . . . . . . . . . . . . . . Repair Stations . | . . . . . . . . . . . . . . Recycling Units 8 | . 1 . . . 6 . . . . . . 1 . Tunnel 7 | . 1 . . . 6 . . . . . . . . Fedlink 1 | . . . . . . . . . . . . 1 . Scanalyzers . | . . . . . . . . . . . . . . Garrison Access . | . . . . . . . . . . . . . . Data Cores Recovered 2 | . . . . . . . 1 . . . 1 . . Used 1 | . . . . . . . 1 . . . . . . Hacking Detections 39 | . 6 . 3 9 4 . 4 6 . . 5 2 . Full Trace Events 6 | . . . . 4 . . 1 1 . . . . . Feedback Events . | . . . . . . . . . . . . . . Feedback Blocked . | . . . . . . . . . . . . . . Robot Schematics Acquired . | . . . . . . . . . . . . . . Robots Built . | . . . . . . . . . . . . . . Authchips . | . . . . . . . . . . . . . . Time . | . . . . . . . . . . . . . . Total Robot Build Rating . | . . . . . . . . . . . . . . Part Schematics Acquired . | . . . . . . . . . . . . . . Parts Built . | . . . . . . . . . . . . . . Authchips . | . . . . . . . . . . . . . . Time . | . . . . . . . . . . . . . . Total Part Build Rating . | . . . . . . . . . . . . . . Part Studies Acquired 6 | . . . . . . . 4 . . . . 2 . Parts Repaired 2 | . . . . 2 . . . . . . . . . Time 58 | . . . . 58 . . . . . . . . . Parts Recycled . | . . . . . . . . . . . . . . Recycled Matter . | . . . . . . . . . . . . . . Retrieved Matter . | . . . . . . . . . . . . . . Retrieved Components . | . . . . . . . . . . . . . . Parts Scanalyzed . | . . . . . . . . . . . . . . Part Schematics Acquired . | . . . . . . . . . . . . . . Parts Damaged . | . . . . . . . . . . . . . . Bothacking | -11 -10 -10 -9 -9 -9 -9 -6 -6 -6 -6 -6 -5 -5 ------------ Run | Yrd Mat Min Mat Sto Rec Scr Fac Ext Cet Arc Hub Fac Was Used RIF Installer . | . . . . . . . . . . . . . . Robots Hacked . | . . . . . . . . . . . . . . Non-combat . | . . . . . . . . . . . . . . Combat . | . . . . . . . . . . . . . . Robot Hacks Applied . | . . . . . . . . . . . . . . Relay Couplers Released 2 | . . . . 2 . . . . . . . . . Machine Destruction 2 | . . . . 2 . . . . . . . . . Fabnet Peak Effective % . | . . . . . . . . . . . . . . Robots Rewired 6 | . . . . . . . . 6 . . . . . Allies Hacked . | . . . . . . . . . . . . . . Hacks Repelled . | . . . . . . . . . . . . . . Allies | -11 -10 -10 -9 -9 -9 -9 -6 -6 -6 -6 -6 -5 -5 -------- Run | Yrd Mat Min Mat Sto Rec Scr Fac Ext Cet Arc Hub Fac Was Total Allies 36 | . . 2 . 10 . . . 18 5 . . . 1 Largest Group 11 | . . 2 2 10 . . . 11 7 5 4 . 1 Highest-Rated Group 654 | . . 38 38 88 . . . 464 654 407 379 . 31 Highest-Rated Ally 159 | . . 31 31 16 . . . 159 143 96 96 . 31 Initial UFD Resources 38 | . . . . . . . 24 24 24 24 24 28 38 Total Orders 2 | . . . . . . . . 1 1 . . . . STAY 2 | . . . . . . . . 1 1 . . . . Ally Attacks 318 | . . . 9 81 . . . 111 47 3 58 . 9 Total Damage 6355 | . . . 169 671 . . . 1599 1218 43 2509 . 146 Kills 57 | . . . 5 10 . . . 21 4 . 17 . . Allies Corrupted . | . . . . . . . . . . . . . . Allies Melted 1 | . . . . . . . . 1 . . . . . Intel | -11 -10 -10 -9 -9 -9 -9 -6 -6 -6 -6 -6 -5 -5 ------- Run | Yrd Mat Min Mat Sto Rec Scr Fac Ext Cet Arc Hub Fac Was Active Infowar (turns) 2309 | . . . . . . . 1257 6 . . 926 120 . Sensors 92 | . . . . . . . . . . . . 92 . IFF 181 | . . . . . . . 181 . . . . . . Jamming 2217 | . . . . . . . 1257 6 . . 926 28 . Robot Analysis Total 1 | . . . 1 . . . . . . . . . . Derelict Logs Recovered 3 | . . 3 . . . . . . . . . . . Drone Launches . | . . . . . . . . . . . . . . Drone Recoveries . | . . . . . . . . . . . . . . Exploration | -11 -10 -10 -9 -9 -9 -9 -6 -6 -6 -6 -6 -5 -5 ------------- Run | Yrd Mat Min Mat Sto Rec Scr Fac Ext Cet Arc Hub Fac Was Turns Passed 21990 | 137 1062 1282 1304 4562 1369 3951 1692 4151 656 64 1000 650 110 Spaces Moved 9054 | 71 465 497 457 1332 548 1750 859 1947 250 40 515 289 34 Core 10 | 9 1 . . . . . . . . . . . . Treads 8790 | 62 464 497 457 1332 548 1750 771 1781 250 40 515 289 34 Legs . | . . . . . . . . . . . . . . Wheels 254 | . . . . . . . 88 166 . . . . . Hover . | . . . . . . . . . . . . . . Flight . | . . . . . . . . . . . . . . Fastest Speed 50 | 50 160 240 240 240 240 160 110 95 160 160 160 160 160 Average Speed 198 | 146 175 240 240 240 240 223 166 159 160 160 160 160 160 Slowest Speed 500 | 160 500 240 240 240 240 240 400 320 160 160 160 160 160 Overloaded Moves . | . . . . . . . . . . . . . . Propulsion Burnouts . | . . . . . . . . . . . . . . Robots Hopped . | . . . . . . . . . . . . . . Potential Cave-ins . | . . . . . . . . . . . . . . Cave-ins Triggered 1 | . . . . . . . . . . . . . 1 Exploration Rate (%) 61 | 3 93 99 64 94 95 90 20 97 56 69 49 9 23 Regions Visited 13 Branch Regions 8 Pre-discovered Areas 10 | . 2 . . . 6 2 . . . . . . . Known Exits Taken 3 | . . 1 1 . . . 1 . . . . . . Unknown Exits Taken 9 | 1 1 . . 1 1 1 . 1 1 1 1 . . Scrap Searched 4 | . . 1 . . . 3 . . . . . . . Spaces Dug 62 | . . . . 7 . . 7 25 . . 23 . . Terrain Destroyed 1207 | . 30 37 30 297 . . 14 357 22 . 338 53 29 Melee 11 | . . . . 4 . . 7 . . . . . . Projectile 169 | . . . 11 11 . . . 26 22 . 48 45 6 AOE 1025 | . 30 37 19 282 . . 7 329 . . 290 8 23 Terrain Rammed . | . . . . . . . . . . . . . . Walls Destroyed . | . . . . . . . . . . . . . . Machines Disabled . | . . . . . . . . . . . . . . Actions | -11 -10 -10 -9 -9 -9 -9 -6 -6 -6 -6 -6 -5 -5 --------- Run | Yrd Mat Min Mat Sto Rec Scr Fac Ext Cet Arc Hub Fac Was Total 11920 | 87 635 541 591 2392 573 1806 998 2753 462 40 597 388 57 Wait 1634 | . 87 1 34 820 . . 11 489 136 1 10 42 3 Move 9042 | 70 464 496 456 1331 547 1749 858 1946 249 39 514 289 34 Hop . | . . . . . . . . . . . . . . Pick Up 115 | 4 15 5 17 7 4 19 13 9 9 . 6 6 1 Fast Attach 83 | 6 7 1 7 9 . 6 16 13 11 . 2 4 1 Attach 28 | . . . 5 2 . 3 6 4 1 . . 3 4 Detach 16 | . 1 1 1 1 . 4 2 4 . . 1 1 . Swap 130 | . 10 8 7 36 4 7 7 24 8 . 13 6 . Drop 150 | . 6 4 24 17 4 18 16 24 24 . 6 6 1 Fire 596 | 7 44 23 40 159 13 . 52 146 24 . 44 31 13 Melee 24 | . . . . 7 . . 17 . . . . . . Ram . | . . . . . . . . . . . . . . Kick . | . . . . . . . . . . . . . . Crush 7 | . 1 2 . 2 1 . . . . . 1 . . Escape Stasis 16 | . . . . . . . . 16 . . . . . Rewire 79 | . . . . 1 . . . 78 . . . . . Trap . | . . . . . . . . . . . . . . Miscellaneous . | . . . . . . . . . . . . . . Route ------- -11/Scrapyard -10/Materials (discovered 6 exits: *Mat x3 / *Min x2 / Sub) -10/Mines (discovered 3 exits: *Mat x2 / *Sub) -9/Materials (discovered 6 exits: *Mat x2 / *Min x2 / *Sto x2) -9/Storage (discovered 2 exits: *Mat / *Rec) -9/Recycling (discovered 2 exits: [*Fac] / *Scr) -9/Scraptown -6/Factory (discovered 4 exits: *Low x2 / *Ext x2) -6/Extension (discovered 3 exits: *Fac x2 / *Cet) -6/Cetus (discovered 2 exits: *Fac / [*Arc]) -6/Archives -6/Hub_04(d) -5/Factory (discovered 2 exits: [*Fac] / [*Upp]) -5/Waste History --------- Turn | Location | Event 22 | -11/Scrapyard | Discovered new exit (range 15) 138 | -11/Scrapyard | Entered Materials 252 | -10/Materials | Discovered new exit (range 10) 316 | -10/Materials | Build established: Mutant 361 | -10/Materials | Discovered new exit (range 16) 738 | -10/Materials | Derelicts attacked the area 829 | -10/Materials | Discovered new exit (range 16) 870 | -10/Materials | Discovered new exit (range 14) 1063 | -10/Materials | Learned 2 Storage zone layouts 1090 | -10/Materials | Learned location of Mines (-8) 1108 | -10/Materials | Learned 4 Subcaves zone layouts 1116 | -10/Materials | Identified exit to Subcaves 1132 | -10/Materials | Loaded intel: 1 repair station location 1158 | -10/Materials | Learned Storage stockpile data 1192 | -10/Materials | Identified exit to Materials 1200 | -10/Materials | Entered Mines 1209 | -10/Mines | Met a Derelict who couldn't figure out how to use a Trap Extractor 1345 | -10/Mines | Found the Drone Emporium 1361 | -10/Mines | Found Prototype Device 2054 | -10/Mines | Learned 8 Materials zone layouts 2062 | -10/Mines | Discovered exit to Subcaves (range 10) 2388 | -10/Mines | Discovered exit to Materials (range 8) 2482 | -10/Mines | Entered Materials 2482 | -9/Materials | Accompanied by 2 allies 2482 | -9/Materials | Evolved 2 slots: Utility x1, Weapon x1 2483 | -9/Materials | Identified exit to Mines 2483 | -9/Materials | Identified exit to Storage 2484 | -9/Materials | Identified exit to Materials 2487 | -9/Materials | Led the pair of lost Derelicts to an unsafe place 2781 | -9/Materials | Build established: Tank 3653 | -9/Materials | Discovered exit to Materials (range 15) 3786 | -9/Materials | Entered Storage 4170 | -9/Storage | Destroyed 7 combat bots 4452 | -9/Storage | Repaired Grenade Launcher 4586 | -9/Storage | First assault squad dispatched 5057 | -9/Storage | Assisted by bots powering up and referring to "LRC-V3" 5347 | -9/Storage | Build established: Commander-Tank 5394 | -9/Storage | Repaired Shield Generator 5563 | -9/Storage | Used back door to open Recycling access 5563 | -9/Storage | Discovered new exit (range 4) 5842 | -9/Storage | Destroyed 7 combat bots 5874 | -9/Storage | Lost 5 allies 6585 | -9/Storage | Build established: Tank 8192 | -9/Storage | High security lockdown imminent 8195 | -9/Storage | Sterilization system engaged 8195 | -9/Storage | Non-combat units ordered to evacuate 8294 | -9/Storage | Destroyed 9 combat bots 8295 | -9/Storage | Combat units ordered to evacuate 8348 | -9/Storage | Entered Recycling 9078 | -9/Recycling | Discovered new exit (range 5) 9652 | -9/Recycling | Scanned before Scraplab entrance 9691 | -9/Recycling | Entered Scraplab 9710 | -9/Recycling | Discovered new exit (range 3) 9717 | -9/Recycling | Entered Scraptown 9722 | -9/Scraptown | System corruption cleaned by C-Scrubber 9785 | -9/Scraptown | Heard Great Nut preacher, LISTEN AND RECITE! 10380 | -9/Scraptown | Visited Awakened 10454 | -9/Scraptown | Visited IN-MT5's Study 10514 | -9/Scraptown | Learned location of Extension (-6) 10569 | -9/Scraptown | Visited Spacefarers 10670 | -9/Scraptown | Visited CR-KLE's Repair Center 10696 | -9/Scraptown | Visited Assassins FH 11191 | -9/Scraptown | Visited Cave Peace 11229 | -9/Scraptown | Visited TADAMA 11270 | -9/Scraptown | Visited UFD Registry 11289 | -9/Scraptown | Registered with UFD as "Maceeater" 11361 | -9/Scraptown | Received an X-ray algorithm 11371 | -9/Scraptown | Visited Modified Component R&D 11435 | -9/Scraptown | Visited Abandonware Association 11481 | -9/Scraptown | Learned abandonware demo "OVRCLOCK.EXE" 11486 | -9/Scraptown | Learned abandonware demo "TRNCOAT.EXE" 11486 | -9/Scraptown | Learned abandonware demo "REBOOT5.EXE" 11769 | -9/Scraptown | Visited Derelict Rescue Squad 11793 | -9/Scraptown | Visited Scrap Suit Storage 11867 | -9/Scraptown | Visited Junk Repository 12016 | -9/Scraptown | Identified Decoy Drone Bay 12161 | -9/Scraptown | Visited Junk Repository 12229 | -9/Scraptown | Visited Chapter 10 12253 | -9/Scraptown | Visited A0-MCA Data Center 12285 | -9/Scraptown | Build established: Mutant 12502 | -9/Scraptown | CR-KLE repaired 5 parts 12802 | -9/Scraptown | Build established: Tank 12834 | -9/Scraptown | Given a B rating by A0-MCA 12841 | -9/Scraptown | Found A0-MCA's Component Scanner 13364 | -9/Scraptown | Found DRS Beacon 13541 | -9/Scraptown | Met Optimus 13541 | -9/Scraptown | Accepted into 0bPrime 13663 | -9/Scraptown | Discovered new exit (range 3) 13668 | -9/Scraptown | Entered Factory 13668 | -6/Factory | Evolved 6 slots: Propulsion x3, Utility x1, Weapon x2 13765 | -6/Factory | Identified exit to Lower Caves 13765 | -6/Factory | Identified exit to Extension 13988 | -6/Factory | Build established: Scavenger-Tank 15360 | -6/Factory | Entered Extension 15792 | -6/Extension | Rescued a captive Derelict 15794 | -6/Extension | Rescued a captive Derelict 15802 | -6/Extension | Rescued a captive Derelict 16333 | -6/Extension | Spotted B-75 Beast 16352 | -6/Extension | Allies destroyed B-75 Beast 16361 | -6/Extension | Spotted B-75 Beast 16373 | -6/Extension | Allies destroyed B-75 Beast 16409 | -6/Extension | Lost 6 allies 16469 | -6/Extension | Rescued a captive Derelict 16470 | -6/Extension | Rescued a captive Derelict 16511 | -6/Extension | Rescued a captive Derelict 16512 | -6/Extension | Rescued a captive Derelict 16591 | -6/Extension | Rescued A7 16729 | -6/Extension | Rescued a captive Derelict 16730 | -6/Extension | Rescued a captive Derelict 16744 | -6/Extension | Build established: Scavenger-Gunner 16764 | -6/Extension | Rescued a captive Derelict 16765 | -6/Extension | Rescued a captive Derelict 16840 | -6/Extension | Discovered new exit (range 10) 16842 | -6/Extension | Discovered new exit (range 6) 17110 | -6/Extension | Disrupted transfer network 17117 | -6/Extension | Disrupted transfer network 17163 | -6/Extension | Lost 3 allies 17602 | -6/Extension | Energy Cycler disabled 17810 | -6/Extension | First assault squad dispatched 18700 | -6/Extension | Discovered new exit (range 15) 19511 | -6/Extension | Entered Cetus 19511 | -6/Cetus | Accompanied by 4 allies (A7) 19516 | -6/Cetus | Acquired a Cetus Manufacturing Module code from A7 19519 | -6/Cetus | Attached CPS modules to A7. 19537 | -6/Cetus | Spotted Cetus Guard 19537 | -6/Cetus | Spotted Cetus Guard 19540 | -6/Cetus | Destroyed Cetus Guard 19543 | -6/Cetus | Destroyed Cetus Guard 19554 | -6/Cetus | Destroyed Cetus Guard 19555 | -6/Cetus | Spotted Cetus Guard 19560 | -6/Cetus | Destroyed Cetus Guard 19605 | -6/Cetus | System corruption reached 10% 19703 | -6/Cetus | Started Cetus Manufacturing Module 19728 | -6/Cetus | Manufactured an Enhanced Grunt 19753 | -6/Cetus | Manufactured an Enhanced Grunt 19778 | -6/Cetus | Manufactured an Enhanced Grunt 19803 | -6/Cetus | Manufactured an Enhanced Grunt 19828 | -6/Cetus | Manufactured an Enhanced Grunt 19847 | -6/Cetus | Discovered new exit (range 15) 19886 | -6/Cetus | Spotted Cetus Guard 19886 | -6/Cetus | Spotted Cetus Guard 19889 | -6/Cetus | Spotted Cetus Guard 19889 | -6/Cetus | Spotted Cetus Guard 19895 | -6/Cetus | Attached CPS modules to Cetus Guard. 19900 | -6/Cetus | Destroyed Cetus Guard 19906 | -6/Cetus | Allies destroyed Cetus Guard 19907 | -6/Cetus | Allies destroyed Cetus Guard 19912 | -6/Cetus | Allies destroyed Cetus Guard 19913 | -6/Cetus | Discovered new exit (range 15) 19921 | -6/Cetus | Met Revision 17 20130 | -6/Cetus | Murdered A7 20146 | -6/Cetus | Extracted ID and sensor layout for unrecognized location from A7's data core 20151 | -6/Cetus | Found Prototype Protection 20151 | -6/Cetus | Identified Med. Regenerative Plating 20167 | -6/Cetus | Entered Archives 20167 | -6/Archives | Accompanied by 5 allies 20187 | -6/Archives | Met Zhirov 20193 | -6/Archives | Reinforcements dispatched to Archives 20203 | -6/Archives | Discovered new exit (range 15) 20231 | -6/Archives | Entered Hub_04(d) 20231 | -6/Hub_04(d) | Accompanied by 4 allies 20440 | -6/Hub_04(d) | Build established: Scavenger-Tank 20819 | -6/Hub_04(d) | Found Launcher Loader 20889 | -6/Hub_04(d) | Discovered new exit (range 15) 21023 | -6/Hub_04(d) | Network Hub disabled 21081 | -6/Hub_04(d) | Network Hub disabled 21231 | -6/Hub_04(d) | Entered Factory 21231 | -5/Factory | Evolved 2 slots: Power x1, Weapon x1 21477 | -5/Factory | Discovered new exit (range 11) 21504 | -5/Factory | Discovered new exit (range 5) 21512 | -5/Factory | Build established: Scavenger-Executioner 21531 | -5/Factory | First assault squad dispatched 21581 | -5/Factory | Loaded intel: 8 recycling unit locations 21881 | -5/Factory | Sucked down chute 21881 | -5/Factory | Entered Waste 21882 | -5/Waste | Met a frightened Derelict 21896 | -5/Waste | EMP discharged 21918 | -5/Waste | Spotted C-40 Crusher 21918 | -5/Waste | Spotted C-40 Crusher 21919 | -5/Waste | Spotted C-40 Crusher 21928 | -5/Waste | Crushed by Compactor (1 part destroyed) 21931 | -5/Waste | Crushed by Compactor (0 parts destroyed, 1 dropped) 21931 | -5/Waste | Destroyed C-40 Crusher 21937 | -5/Waste | Spotted C-40 Crusher 21947 | -5/Waste | Crushed by Compactor (0 parts destroyed, 1 dropped) 21950 | -5/Waste | Crushed by Compactor (1 part destroyed) 21953 | -5/Waste | Crushed by Compactor (1 part destroyed) 21967 | -5/Waste | Crushed by Compactor (0 parts destroyed, 1 dropped) 21970 | -5/Waste | Crushed by Compactor (1 part destroyed, 1 dropped) 21976 | -5/Waste | Crushed by Compactor (1 part destroyed) 21982 | -5/Waste | Crushed by Compactor (0 parts destroyed, 1 dropped) 21985 | -5/Waste | Crushed by Compactor (0 parts destroyed, 1 dropped) 21988 | -5/Waste | Crushed by falling debris 21991 | -5/Waste | Crushed by Compactor (1 part destroyed, 1 dropped) 21991 | -5/Waste | Self-destructed Last Messages --------------- 21973_ Slug penetrates C-40 Crusher. 21973_ C-40 Crusher suffers critical hit (Destroy). 21973_ Destroyed Compactor. 21976_ Adv. KE Penetrator crushed. 21977_ Slug penetrates C-40 Crusher. 21980_ Dropped Imp. Matter Compressor. 21980_ Extracted 300 matter. 21982_ Slug penetrates C-40 Crusher. 21982_ Adv. KE Penetrator crushed. 21985_ Imp. Heavy Machine Gun crushed. 21986_ ALERT: Foreign system detected. Charging EMP. 21987_ Acquired Imp. Heavy Machine Gun. 21988_ The unstable cave ceiling collapses. 21988_ Crushed by falling debris. 21990_ Imp. Matter Compressor crushed. 21990_ Lrn. Missile Launcher+ crushed. 21991_ System corrupted: Matter fused (-8). 21991_ The unstable cave ceiling collapses. 21991_ Adv. KE Penetrator crushed. 21991_ KE Penetrator+ crushed. Map ----- +----------------------------------------------------+ | ?????????????????????????????????????????????????? | | ?????????????????????????????????????????????????? | | ?????????????????????????????????????????????????? | | ?????????????????????????????????????????????????? | | ?????????????????????????????????????????????????? | | ?????????????????????????????????????????????????? | | ?????????????????????????????????????????????????? | | ?????????????????????????????????????????????????? | | ?????????????????????????????????????????????????? | | ?????????????????????????????????????????????????? | | ?????????????????????????????????????????????????? | | ?????????????????????????????????????????????????? | | ?????????????????????????????????????????????????? | | ?????????????????????????????????????????????????? | | ?????????????????????????????????????????????????? | | ?????????????????????????????????????????????????? | | ?????????????????????????######??????????????????? | | ?????????????????????????# #??????????????????? | | ???????????############??# #??????????????????? | | ???????????# #??# #??????????????????? | | ???????????# #??# #??????????????????? | | ???????????# #### #??????????????????? | | ???????????# #????????????? ???? | | ???????????# ! #???????????? ????? | | ???????????# ###?????????? ?????? | | ???????????# @ #????????? ??????? | | ???????????# ## #CC #???????? #??????? | | ???????????# ## !CC #??????? #??????? | | ???????????# ## ##?????? #??????? | | ???????????############# #????? #??????? | | ???????????????????????# CC ###### # #????? | | ???????????????????????# CC "#?????? | | ??????????????????????? #??????? | | ??????????????????????## " #??????? | | ???????????????????????# #??????? | | ???????????????????????### ######;# #??????? | | ?????????????????????????# #?????##? #??????? | | ?????????????????????????# #????????? "#?????? | | ?????????????????????????# #?????????? ##?????? | | ?????????????????????????# #???????????#??????? | | ????????????????????????? ??????????????????? | | ???????????????????????? ??????????????????? | | ???????????????????????# ??????????????????? | | ???????????????????????# ??????????????????? | | ???????????????????????### #??????????????????? | | ?????????????????????????# ???????????????????? | | ?????????????????????????? ???????????????????? | | ?????????????????????????????????????????????????? | | ?????????????????????????????????????????????????? | | ?????????????????????????????????????????????????? | +----------------------------------------------------+ Best States ------------- Heat Dissipation 71 Energy Generation 45 Energy Capacity 600 Matter Stores 501 Matter Capacity 600 Sight Range 16 Robot Scan Range 16 Terrain Scan Density 10 Jamming Range 12 Armor Coverage 300 Weapon Cycling 15 Evasion (%) 41 Core Analysis 6 Recoil Reduction 5 Offensive Hacking 14 Authchip Count 1 Item Schematics ----------------- None Robot Schematics ------------------ None Fabricated ------------ Nothing Repaired ---------- Grenade Launcher | 66% | -9/Storage Shield Generator | 30% | -9/Storage Studied --------- Gauss Rifle | -6/Factory | Hacked Lrn. Missile Launcher | -6/Factory | Hacked Mni. Grenade Launcher | -6/Factory | Hacked Lgt. Fission Core | -6/Factory | Hacked KE Penetrator | -5/Factory | Hacked Hyp. Gauss Rifle | -5/Factory | Hacked Alien Tech Used ----------------- None Achievements -------------- None Challenges ------------ None Game ------ Seed AdvancedRainbowThermoblaster Manual? 0 Play Time 02:05:40 Cumulative 328.6 hours Start 2026.04.23 @ 23:52:02 End 2026.05.02 @ 02:18:53 Sessions 9 Manual Loads 0 Difficulty Rogue Special Mode None Game No. 127 Rogue 127 Adventurer 0 Explorer 0 Win Type - Total 33 Types 10/4/6/2/1/1/3/2/2/2 Lore% 83 Gallery% 78 Achievement% 70 Wizard Run 0 Options --------- Layout 0 ASCII 0 Keyboard 1 Movement Vi Keybinds 0 Fullscreen 2 Font 24/Smallcaps Map View 76x50 Zoom Use 0% Tactical HUD 1 Map Filters NONE Filters NONE Steam 1 RUN: a0246a8e-0623-4d44-9222-c3a5a56d878e